bitfinex-derivatives/quotes_ETHF0:USTF0_20251107
["timestamp","ask_amount","ask_price","bid_price","bid_amount"]
[1762514380471,3.2078,3254.1,3252.7,3.21241623]
[1762514380670,0.49812,3254.0,3253.8,0.49814]
[1762514380873,3.2078,3254.5,3254.3,0.49807]
[1762514381171,0.00460907,3254.6,3254.1,3.2078]
[1762514381365,0.00460907,3254.6,3254.4,0.49806]
[1762514381873,0.00460907,3254.6,3254.1,3.2078]
[1762514382074,0.00460907,3254.6,3254.5,0.49804]
[1762514382277,0.00460907,3254.6,3254.5,0.00256855]
[1762514383681,0.49818,3253.7,3253.1,3.2078]
[1762514383972,0.49815,3253.9,3253.7,0.49816]
[1762514384173,3.2078,3254.2,3253.8,0.49814]
[1762514384479,0.49812,3254.0,3253.8,0.49815]
[1762514384680,3.2078,3254.2,3253.8,0.00315093]
[1762514384869,0.49813,3254.0,3253.8,0.00315093]
[1762514385063,0.49811,3254.1,3253.8,0.00315093]
[1762514385369,3.70592,3254.0,3253.8,0.00315093]
[1762514385876,0.49813,3253.9,3253.8,0.00315093]
[1762514386372,3.2078,3254.0,3253.8,0.00315093]
[1762514386672,3.867,3254.5,3253.8,3.21095093]
[1762514386872,0.49827,3253.0,3252.6,4.15423]
[1762514387079,0.4982,3253.5,3252.6,0.4481]
[1762514387267,0.49815,3253.8,3253.5,0.4481]
[1762514387572,3.2078,3254.4,3253.9,0.49813]
[1762514387880,0.49817,3253.7,3253.5,0.4481]
[1762514388074,0.49817,3253.7,3253.5,0.94891875]
[1762514388280,0.49818,3253.6,3253.5,0.00262875]
[1762514388580,3.2078,3254.0,3253.5,0.00262875]
[1762514388789,3.70598,3253.6,3253.5,0.00262875]
[1762514389078,0.49818,3253.6,3253.5,0.00262875]
[1762514391084,0.49814,3253.9,3253.8,0.49814]
[1762514391377,0.49814,3253.9,3253.5,3.65852875]
[1762514391578,0.49812,3254.0,3253.5,3.65852875]
[1762514391782,0.4981,3254.1,3253.5,3.65852875]
[1762514391976,3.2078,3254.5,3253.5,0.45072875]
[1762514392174,0.49813,3253.9,3253.8,3.70593]
[1762514392483,0.00460907,3254.6,3253.5,0.00262875]
[1762514392484,0.49818,3253.6,3253.5,0.00262875]
[1762514393773,0.49818,3253.6,3252.8,3.2078]
[1762514393774,0.49829,3252.9,3252.8,3.2078]
[1762514393983,0.4983,3252.8,3252.7,0.00461623]
[1762514394378,3.2078,3252.9,3251.4,8.345]
[1762514394580,0.49856,3251.1,3250.7,10.45861]
[1762514394782,0.4986,3250.9,3250.7,3.95e-05]
[1762514394981,3.2078,3251.0,3247.7,6.97115517]
[1762514394982,0.4988,3249.6,3249.1,0.49886]
[1762514395183,0.4988,3249.6,3247.5,5.3551981]
[1762514395184,3.2078,3249.9,3249.2,3.2078]
[1762514395377,0.00461631,3249.7,3249.2,3.2078]
[1762514395686,0.00461631,3249.7,3249.0,0.45271631]
[1762514395887,0.00461631,3249.7,3249.2,3.2078]
[1762514396384,0.49882,3249.5,3249.2,3.2078]
[1762514396587,0.00461631,3249.7,3249.4,0.49882]
[1762514396980,0.00461631,3249.7,3249.5,0.4988]
[1762514397284,0.00461631,3249.7,3249.6,3.2078]
[1762514398182,0.00461631,3249.7,3249.2,3.2078]
[1762514398881,0.00461631,3249.7,3249.6,3.2078]
[1762514399089,0.00461631,3249.7,3249.5,0.4988]
[1762514399385,0.00461631,3249.7,3249.6,3.2078]
[1762514399787,3.2078,3250.3,3249.6,11.2078]
[1762514399979,3.2078,3250.9,3250.1,3.2078]
[1762514400184,3.2078,3250.5,3249.2,3.2078]
[1762514400480,0.49876,3249.9,3249.4,0.49882]
[1762514400784,3.2078,3250.5,3249.6,3.70658]
[1762514400991,0.00461631,3250.0,3249.8,0.49876]
[1762514401282,0.00378501,3251.1,3250.9,0.49858]
[1762514401487,0.00378501,3251.1,3250.9,0.49859]
[1762514401685,3.2078,3251.8,3251.6,0.49848]
[1762514401876,3.2078,3252.9,3251.7,0.4481]
[1762514402183,3.2078,3253.0,3251.7,0.4481]
[1762514402383,3.70621,3252.1,3252.0,0.00461631]
[1762514402586,3.2108775,3252.1,3252.0,0.00298381]
[1762514402784,0.49855,3251.2,3250.8,3.6559]
[1762514402986,0.49856,3251.2,3250.9,0.49859]
[1762514403179,0.49857,3251.1,3250.9,0.49859]
[1762514403379,0.49857,3251.1,3250.8,3.6559]
[1762514403589,3.2108775,3252.1,3250.8,3.6559]
[1762514403882,3.2108775,3252.1,3250.8,0.00391203]
[1762514403883,0.49859,3251.0,3250.8,0.00391203]
[1762514404087,3.2078,3251.2,3250.8,0.00391203]
[1762514404287,0.49859,3251.0,3250.8,0.00391203]
[1762514404582,0.49858,3251.0,3250.8,0.00391203]
[1762514405085,0.49861,3250.8,3250.6,6.31e-06]
[1762514405284,3.2078,3250.7,3250.6,6.31e-06]
[1762514405493,11.2078,3250.7,3250.6,6.31e-06]
[1762514406190,11.2078,3250.7,3248.4,3.2078]
[1762514406384,3.2078,3249.4,3248.4,3.2078]
[1762514406586,0.49897,3248.5,3248.0,0.4481]
[1762514406891,0.49897,3248.5,3248.2,0.499]
[1762514407086,0.50183724,3248.5,3248.2,0.50167438]
[1762514407289,0.00286724,3248.5,3248.3,3.70678]
[1762514407686,0.00286724,3248.5,3248.2,0.00267438]
[1762514407987,0.49899,3248.4,3248.2,0.00267438]
[1762514408787,0.49902,3248.1,3248.0,0.00461631]
[1762514408983,3.70682,3248.1,3248.0,0.00461631]
[1762514409185,11.2078,3248.1,3246.3,3.2078]
[1762514409498,0.00286724,3248.5,3246.3,3.2078]
[1762514409499,3.2078,3247.2,3246.3,3.2078]
[1762514409788,0.4992,3247.0,3246.3,3.2078]
[1762514409994,3.2078,3247.2,3246.3,3.21179086]
[1762514410194,0.00461631,3247.1,3246.4,0.00461631]
[1762514410397,0.00461631,3247.1,3246.7,3.2078]
[1762514410593,0.50379631,3247.1,3246.7,3.70703]
[1762514410792,0.00461631,3247.1,3246.9,0.4992]
[1762514411393,0.49927,3246.5,3246.4,0.00461631]
[1762514411890,0.00461631,3247.1,3246.9,0.49919]
[1762514412089,0.00461631,3247.1,3246.8,3.2078]
[1762514412294,0.00461631,3247.1,3247.0,0.49919]
[1762514412490,0.00286724,3248.5,3248.1,0.49902]
[1762514412690,0.00286724,3248.5,3248.0,3.2078]
[1762514412897,3.2078,3248.4,3247.6,3.2078]
[1762514413092,0.00286724,3248.5,3247.1,3.2078]
[1762514413293,0.4992,3247.0,3246.8,3.2078]
[1762514413490,0.49918,3247.1,3246.9,3.2078]
[1762514413994,0.00461631,3247.2,3246.8,0.49921]
[1762514414298,0.4992,3247.0,3246.7,3.2078]
[1762514414494,3.2078,3248.1,3246.7,3.2078]
[1762514414692,3.70689,3247.7,3247.0,0.49919]
[1762514414994,3.2078,3248.1,3246.7,3.2078]
[1762514415187,0.49916,3247.2,3246.8,0.49922]
[1762514415388,3.2078,3247.6,3245.0,0.4481]
[1762514415585,3.2078,3245.8,3245.0,0.4481]
[1762514415786,3.2078,3245.4,3245.0,0.4481]
[1762514415988,3.2078,3245.4,3244.0,3.2078]
[1762514416191,0.49979,3243.1,3243.0,0.4253]
[1762514416395,3.2078,3243.4,3243.0,0.4253]
[1762514416588,0.0036856,3243.1,3243.0,0.42879224]
[1762514417191,0.49993,3242.2,3242.0,0.4253]
[1762514417493,0.0036856,3243.1,3240.0,0.4253]
[1762514417494,0.50023,3240.3,3240.0,0.4253]
[1762514417691,3.8568,3242.1,3238.8,0.4253]
[1762514417692,3.2078,3240.1,3238.8,0.4253]
[1762514417891,3.2078,3239.0,3238.8,0.4253]
[1762514418094,3.08,3242.0,3238.8,0.4253]
[1762514418095,3.2078,3239.4,3238.8,0.4253]
[1762514418291,0.00295043,3239.4,3239.1,0.50041]
[1762514418589,0.00295043,3239.4,3238.8,0.42799463]
[1762514418590,0.00758163,3239.4,3238.9,3.2078]
[1762514418788,0.00758163,3239.4,3239.0,0.50043]
[1762514419000,0.00758163,3239.4,3239.3,3.2078]
[1762514419196,3.2078,3240.3,3238.8,0.43262583]
[1762514419394,3.2078,3239.9,3238.8,0.43262583]
[1762514419699,2.14836094,3244.4,3236.4,10.9673]
[1762514419700,3.2078,3239.0,3237.2,3.2078]
[1762514419893,3.2078,3239.4,3238.8,0.4253]
[1762514420192,3.70824,3238.9,3237.6,0.4253]
[1762514420399,3.2078,3238.8,3237.6,3.6331]
[1762514420692,0.0046312,3238.5,3238.2,3.2078]
[1762514421193,3.2078,3239.5,3238.2,3.2078]
[1762514421496,3.2078,3238.3,3237.6,0.42803508]
[1762514421697,3.2078,3238.1,3237.6,0.42803508]
[1762514421897,3.2078,3238.1,3237.6,0.1298554]
[1762514422099,3.2078,3237.7,3236.4,0.4253]
[1762514422393,0.50064,3237.7,3237.5,3.12e-05]
[1762514422594,7.27733564,3237.6,3236.1,0.10122323]
[1762514422792,3.2078,3236.2,3234.7,3.2078]
[1762514422987,3.2078,3235.3,3234.6,3.2078]
[1762514423293,0.0034375,3235.3,3235.2,0.4253]
[1762514423495,0.50073,3237.1,3235.2,0.4253]
[1762514423695,2.14836094,3241.0,3235.2,0.4253]
[1762514423696,0.0046312,3235.6,3235.2,0.4253]
[1762514423900,3.2078,3235.5,3235.2,0.4253]
[1762514424095,0.0046312,3235.7,3235.6,0.50095]
[1762514424300,3.2078,3237.1,3236.5,0.50081]
[1762514424491,0.003599,3237.1,3236.9,3.2078]
[1762514424698,3.2078,3237.9,3236.9,0.50387485]
[1762514424894,3.2078,3238.7,3237.6,0.4253]
[1762514425098,3.2078,3238.8,3238.1,0.50056]
[1762514425402,3.2078,3238.4,3237.8,0.0046312]
[1762514425604,3.2078,3239.7,3238.0,3.2078]
[1762514425802,3.2078,3239.3,3238.8,0.4253]
[1762514426104,3.2078,3238.9,3238.8,0.4253]
[1762514426297,0.00296429,3239.7,3239.6,0.50033]
[1762514426500,3.2078,3240.6,3240.0,0.4253]
[1762514426802,3.2124312,3240.6,3240.0,0.4299312]
[1762514427299,0.0046312,3240.6,3240.4,0.5002]
[1762514427493,3.2078,3241.4,3240.4,3.2078]
[1762514427694,3.2078,3241.8,3240.9,0.4253]
[1762514427890,0.50013,3240.9,3240.0,0.4299312]
[1762514428097,6.679,3243.4,3240.0,0.4299312]
[1762514428098,3.2078,3240.6,3240.0,0.4299312]
[1762514428294,3.2078,3240.1,3240.0,0.4299312]
[1762514428496,3.21061275,3240.1,3240.0,0.4299312]
[1762514429194,0.00281275,3240.1,3240.0,8.4299312]
[1762514429499,3.71087275,3240.1,3240.0,0.4299312]
[1762514429803,3.21061275,3240.1,3240.0,0.4299312]
[1762514429991,0.00281275,3240.1,3240.0,0.4299312]
[1762514430192,3.21061275,3240.1,3240.0,0.4299312]
[1762514430402,0.50032,3239.7,3239.6,0.00273916]
[1762514430599,3.2078,3239.7,3238.8,0.4253]
[1762514430798,3.70812,3239.7,3238.8,0.4253]
[1762514431102,0.50038,3239.4,3238.8,0.4253]
[1762514431304,0.50038,3239.4,3235.2,0.4253]
[1762514431305,0.50046,3238.8,3237.8,3.2078]
[1762514431499,3.2078,3238.9,3238.8,0.0046312]
[1762514431899,0.50041,3239.1,3238.8,8.4299312]
[1762514432200,0.0046312,3239.2,3238.8,0.4299312]
[1762514432402,3.2078,3238.9,3238.8,0.4299312]
[1762514432603,0.0046312,3239.2,3238.8,0.4299312]
[1762514432996,0.50043,3239.0,3238.8,0.4299312]
[1762514433196,0.0046312,3239.2,3238.8,0.4299312]
[1762514433397,3.2078,3238.9,3238.8,0.4299312]
[1762514433594,0.5050312,3239.2,3238.8,0.4299312]
[1762514433904,0.0046312,3239.2,3238.8,0.4299312]
[1762514434201,0.5050312,3239.2,3238.8,0.4299312]
[1762514434504,3.2078,3238.9,3237.8,0.00231523]
[1762514434694,3.2078,3238.3,3237.8,0.00231523]
[1762514434901,0.50049,3238.6,3238.0,0.50057]
[1762514435102,3.2078,3238.7,3237.8,0.00231523]
[1762514435302,3.2078,3238.7,3238.0,0.50057]
[1762514435504,3.2078,3238.7,3238.0,0.0046312]
[1762514435705,3.2078,3238.3,3238.0,0.0046312]
[1762514435915,0.50056,3238.2,3238.0,0.0046312]
[1762514436101,3.2078,3238.4,3237.8,0.00231523]
[1762514436505,3.2078,3237.9,3236.1,0.50087]
[1762514436700,0.50077,3236.8,3235.9,3.2078]
[1762514436901,0.5008,3236.6,3235.9,3.2078]
[1762514437105,0.5008,3236.6,3236.2,0.0046312]
[1762514437306,0.0046312,3236.8,3236.2,0.0046312]
[1762514437496,3.2078,3236.5,3236.4,0.00270259]
[1762514437697,0.50081,3236.6,3236.4,0.00270259]
[1762514437897,3.2078,3236.5,3236.2,0.0046312]
[1762514438106,0.00864244,3236.8,3236.4,0.50082]
[1762514438305,3.2078,3237.4,3236.6,0.50079]
[1762514438507,0.50064,3237.6,3236.9,3.2078]
[1762514438707,3.2078,3237.0,3236.3,3.2078]
[1762514438907,0.50075,3236.9,3236.3,3.70864]
[1762514439105,3.2078,3236.5,3236.2,0.4253]
[1762514439303,0.00218262,3236.5,3236.2,0.42795669]
[1762514440007,3.2078,3236.3,3234.9,3.2078]
[1762514440212,3.2078,3235.0,3233.3,3.2078]
[1762514440411,3.7088,3235.3,3234.2,3.2078]
[1762514440605,0.50103,3235.1,3234.3,3.2078]
[1762514440813,3.70886,3234.9,3234.2,0.50116]
[1762514441001,0.50108,3234.8,3234.2,0.50851522]
[1762514441205,0.50107,3234.8,3234.2,0.00735522]
[1762514441711,3.2124312,3234.9,3234.3,0.50114]
[1762514442008,0.50108,3234.8,3234.2,3.21515522]
[1762514442203,3.2124312,3234.9,3234.2,0.00735522]
[1762514442413,3.7134912,3234.9,3234.4,0.50113]
[1762514442605,0.0046312,3234.9,3234.2,3.21515522]
[1762514442808,0.0046312,3234.9,3234.4,0.50113]
[1762514443009,3.12e-05,3234.9,3234.7,0.50108]
[1762514443215,3.2078,3235.3,3235.1,0.5136]
[1762514443810,3.2078,3235.8,3235.2,14.1816]
[1762514444011,3.2078,3236.2,3235.7,0.50092]
[1762514444317,0.00218262,3236.5,3235.7,0.50092]
[1762514444318,0.0046312,3235.8,3235.7,0.50092]
[1762514444609,3.2078,3236.3,3235.3,3.2078]
[1762514444816,0.50089,3236.0,3235.3,3.2078]
[1762514445013,3.70865,3236.3,3235.3,3.2078]
[1762514445210,0.50092,3235.8,3235.3,3.2078]
[1762514445411,0.0046312,3235.9,3235.1,0.5136]
[1762514445608,0.0046312,3235.9,3235.7,3.2078]
[1762514445807,3.2078,3235.8,3235.2,3.2078]
[1762514446012,3.2078,3235.4,3234.2,0.00735522]
[1762514446409,0.50108,3234.8,3234.3,0.50114]
[1762514446718,3.2078,3235.4,3234.2,0.00735522]
[1762514446915,0.50108,3234.8,3234.2,0.50850522]
[1762514447119,3.2078,3235.8,3234.6,3.2078]
[1762514447321,3.2078,3235.8,3235.1,0.50102]
[1762514447512,3.2078,3235.8,3235.0,3.2078]
[1762514447713,3.70873,3235.8,3234.9,3.2078]
[1762514447914,0.50098,3235.4,3235.1,0.5136]
[1762514448214,3.2078,3235.8,3235.3,3.70878]
[1762514448519,0.0046312,3235.9,3235.7,0.50092]
[1762514448721,0.0046312,3235.9,3235.7,0.50093]
[1762514448918,0.50093,3235.7,3235.3,3.2078]
[1762514449126,0.5055412,3235.9,3235.3,3.2078]
[1762514449422,3.2124312,3235.9,3235.1,0.5136]
[1762514449717,0.50098,3235.4,3235.1,0.5136]
[1762514449923,3.2124312,3235.9,3235.1,0.5136]
[1762514450119,0.0046312,3235.9,3235.8,3.2078]
[1762514450316,0.0046312,3235.9,3235.4,3.2078]
[1762514450512,0.0046312,3235.9,3235.6,0.50095]
[1762514450714,8.0,3235.8,3234.2,0.00735522]
[1762514450926,0.50114,3234.4,3234.2,0.00735522]
[1762514451331,3.2078,3234.7,3234.2,0.00735522]
[1762514451536,0.50112,3234.5,3234.2,0.00735522]
[1762514451734,0.50114,3234.4,3234.2,0.00735522]
[1762514452036,0.50115,3234.4,3234.2,0.00735522]
[1762514452436,3.2078,3234.7,3234.2,0.00735522]
[1762514452633,3.2078,3234.7,3234.6,0.5011]
[1762514452831,3.2078,3234.7,3234.5,0.50111]
[1762514453025,3.2078,3235.0,3234.5,0.50112]
[1762514453328,3.2078,3235.4,3234.7,0.50109]
[1762514453637,3.2078,3235.4,3234.6,3.2078]
[1762514453834,0.50101,3235.2,3235.0,0.08426516]
[1762514454228,3.2078,3235.4,3235.0,0.08426516]
[1762514454430,3.70879,3235.4,3235.0,0.08426516]
[1762514454632,0.501,3235.3,3235.0,0.58530516]
[1762514454833,3.2078,3235.8,3235.6,0.50095]
[1762514455227,3.2078,3235.8,3235.6,6.1808]
[1762514455432,0.0046312,3235.9,3235.8,0.50092]
[1762514455830,0.0046312,3235.9,3235.8,17.88952]
[1762514455831,3.12e-05,3235.9,3235.8,17.88952]
[1762514456033,0.00218262,3236.5,3235.8,17.47286516]
[1762514456235,0.00218262,3236.5,3235.8,3.29206516]
[1762514456538,0.50087,3236.1,3235.8,0.08426516]
[1762514456938,0.0046312,3236.3,3236.1,0.50087]
[1762514457142,0.0046312,3236.3,3235.9,0.08426516]
[1762514457143,0.5054812,3236.3,3235.9,0.08426516]
[1762514457336,0.50086,3236.2,3235.9,0.58516516]
[1762514457535,0.50086,3236.2,3236.0,0.50089]
[1762514457845,3.2078,3237.1,3236.9,0.50075]
[1762514458136,0.5007,3237.3,3237.0,0.08426516]
[1762514458339,3.2078,3237.5,3237.0,0.08426516]
[1762514458641,3.70846,3237.5,3237.0,0.08426516]
[1762514458843,0.5007,3237.2,3237.0,0.0879716]
[1762514459137,0.5007,3237.2,3237.1,0.08426516]
[1762514459738,0.0025161,3237.5,3237.1,0.58498516]
[1762514459943,0.0025161,3237.5,3237.3,3.70848]
[1762514460147,0.0025161,3237.5,3237.4,0.08426516]
[1762514461046,0.0025161,3237.5,3237.0,0.00370644]
[1762514461047,0.50072,3237.1,3237.0,0.00370644]
[1762514461242,3.70852,3237.1,3237.0,0.00370644]
[1762514461937,3.2078,3237.1,3237.0,0.50443644]
[1762514462135,0.0025161,3237.5,3237.4,0.50067]
[1762514462336,3.2078,3238.6,3238.4,0.5005]
[1762514462544,3.2078,3239.0,3238.4,0.50052]
[1762514462741,3.2078,3238.6,3237.9,0.50059]
[1762514462941,3.2078,3239.0,3238.6,0.50048]
[1762514463142,3.2078,3239.4,3239.1,0.5004]
[1762514463337,0.00323763,3239.4,3239.0,0.50042]
[1762514463543,3.21103763,3239.4,3238.0,0.5136]
[1762514463741,0.50051,3238.5,3238.0,0.50057]
[1762514463942,3.2078,3238.6,3238.4,0.50051]
[1762514464146,3.2078,3238.6,3236.5,5.207]
[1762514464147,3.2078,3239.0,3238.9,0.50044]
[1762514464342,0.00323763,3239.4,3238.3,3.2078]
[1762514464644,0.0046312,3239.2,3239.1,0.50041]
[1762514465343,0.0046312,3239.2,3239.1,3.70821]
[1762514465548,3.12e-05,3239.2,3239.1,9.88261]
[1762514465742,3.2078,3239.9,3239.8,0.5003]
[1762514466048,3.2078,3240.3,3239.5,3.2078]
[1762514466247,3.2078,3240.3,3240.1,0.50025]
[1762514466450,0.50021,3240.4,3239.5,3.2078]
[1762514466640,3.2078,3240.7,3239.5,3.2078]
[1762514466841,3.21139014,3240.7,3239.8,0.0046312]
[1762514467046,0.50018,3240.6,3240.0,0.50026]
[1762514467248,0.5002,3240.5,3240.0,0.50026]
[1762514467446,0.50022,3240.3,3239.8,0.0046312]
[1762514467746,0.5002,3240.5,3240.1,0.50025]
[1762514467944,0.5002,3240.5,3240.2,0.50023]
[1762514468143,3.21139014,3240.7,3240.5,0.50017]
[1762514468647,0.00359014,3240.7,3240.5,0.50017]
[1762514469039,0.00359014,3240.7,3240.5,6.67217]
[1762514469247,0.00359014,3240.7,3240.6,6.172]
[1762514469945,3.2078,3242.0,3240.6,8.0]
[1762514470152,3.2078,3242.0,3241.8,0.49999]
[1762514470449,3.2078,3242.5,3241.6,3.2078]
[1762514470649,3.2078,3242.5,3242.3,0.49991]
[1762514470852,3.2078,3242.9,3242.3,0.0037077]
[1762514471049,3.21143813,3242.9,3242.3,0.0083389]
[1762514471254,3.70768,3242.5,3242.3,0.0083389]
[1762514471754,11.70768,3242.5,3242.3,0.0083389]
[1762514471951,3.70768,3242.5,3242.3,0.0083389]
[1762514472151,3.2078,3242.5,3241.0,0.5111]
[1762514472455,3.2078,3242.1,3241.1,3.2078]
[1762514472658,3.2078,3242.1,3241.9,0.49997]
[1762514472858,3.2078,3242.5,3241.1,3.2078]
[1762514473054,0.0046312,3242.1,3242.0,0.49994]
[1762514473258,0.49985,3242.7,3242.4,0.49989]
[1762514473551,3.2078,3242.5,3242.3,0.49991]
[1762514473759,3.2078,3242.5,3242.2,0.49992]
[1762514473960,3.21143813,3242.9,3242.4,0.4999]
[1762514474157,3.21143813,3242.9,3242.7,0.49985]
[1762514474349,0.50346813,3242.9,3242.1,6.168]
[1762514474548,0.50346813,3242.9,3242.0,0.5111]
[1762514474549,0.00363813,3242.9,3242.7,0.49985]
[1762514475159,0.00363813,3242.9,3242.2,3.2078]
[1762514475353,0.00363813,3242.9,3242.7,0.49985]
[1762514475859,0.50346813,3242.9,3242.7,0.49985]
[1762514476051,0.49984,3242.8,3242.6,0.49987]
[1762514476247,0.00363813,3242.9,3242.8,0.49984]
[1762514476458,3.2078,3243.8,3243.7,0.4997]
[1762514476650,8.4398707,3246.0,3243.4,0.00462341]
[1762514476651,3.2078,3244.3,3243.4,0.00462341]
[1762514476853,3.2078,3244.7,3244.5,0.49957]
[1762514477055,3.2078,3244.7,3243.4,0.00462341]
[1762514477258,3.2078,3243.5,3243.4,0.00462341]
[1762514477557,3.2078,3242.4,3240.0,0.5111]
[1762514477764,3.2078,3240.6,3240.0,0.00312985]
[1762514477953,3.2078,3240.2,3240.0,0.00312985]
[1762514478253,3.21065405,3240.6,3240.0,0.50338985]
[1762514478558,3.21525153,3240.6,3240.2,0.50024]
[1762514478760,3.21525153,3240.6,3240.0,0.00775326]
[1762514478966,3.21525153,3240.6,3240.4,0.5002]
[1762514479261,3.21525153,3240.6,3240.1,6.172]
[1762514479262,3.2078,3241.0,3240.9,0.50013]
[1762514479556,3.2078,3241.0,3240.3,3.2078]
[1762514479557,3.2078,3241.0,3240.8,0.50014]
[1762514479753,3.2078,3241.5,3241.1,0.5001]
[1762514480059,3.2078,3241.5,3240.6,0.5111]
[1762514480259,3.2078,3241.1,3240.7,0.00462341]
[1762514480458,3.21149468,3241.5,3241.4,0.50006]
[1762514481164,3.21149468,3241.5,3241.4,6.1704]
[1762514481461,3.21149468,3241.5,3241.3,0.50007]
[1762514482165,3.2078,3242.6,3242.2,0.49992]
[1762514482358,3.2078,3242.6,3242.3,0.49991]
[1762514482555,3.2078,3242.6,3242.4,0.49989]
[1762514482962,3.21120243,3242.6,3242.4,0.50238016]
[1762514483554,3.71108243,3242.6,3242.4,0.00249016]
[1762514483754,3.21120243,3242.6,3242.4,0.00249016]
[1762514483961,3.71108243,3242.6,3242.4,0.00249016]
[1762514484358,3.21120243,3242.6,3242.4,0.00249016]
[1762514484558,3.71108243,3242.6,3242.4,0.00249016]
[1762514485767,3.21120243,3242.6,3242.4,0.00249016]
[1762514486068,3.2078,3243.2,3242.5,14.168]
[1762514486262,3.2078,3243.2,3243.0,0.4998]
[1762514486860,3.2078,3243.2,3242.4,3.21029016]
[1762514487067,0.00353501,3243.2,3243.0,4.2187]
[1762514487261,0.00353501,3243.2,3243.1,6.1672]
[1762514487863,3.2078,3243.8,3243.1,6.1672]
[1762514488059,3.2078,3243.8,3243.0,0.5111]
[1762514488257,3.2078,3243.6,3242.4,0.00249016]
[1762514488460,0.49987,3242.6,3242.4,0.00249016]
[1762514488657,3.2078,3242.5,3242.4,0.00249016]
[1762514489261,0.00326379,3242.6,3242.5,0.49989]
[1762514489463,3.2078,3243.3,3243.2,0.49978]
[1762514489662,3.2078,3244.2,3244.0,0.49965]
[1762514489857,0.49964,3244.1,3243.0,3.7189]
[1762514490056,0.49972,3243.6,3242.9,0.00462341]
[1762514490257,0.49967,3243.9,3242.9,3.21242341]
[1762514490460,0.00250232,3243.9,3243.8,0.49968]
[1762514490763,0.00250232,3243.9,3243.0,0.5111]
[1762514490954,3.21030232,3243.9,3243.0,0.5111]
[1762514491161,3.70997232,3243.9,3243.6,0.49971]
[1762514491561,3.21030232,3243.9,3242.9,3.21242341]
[1762514491766,3.2078,3243.3,3243.1,0.49979]
[1762514492066,3.2078,3243.3,3242.9,3.71224341]
[1762514492363,3.2078,3243.3,3242.9,3.21242341]
[1762514492665,3.2078,3243.3,3242.9,0.00462341]
[1762514492865,3.2078,3243.3,3243.1,0.49979]
[1762514494065,3.2078,3243.7,3243.6,0.49971]
[1762514494256,3.2078,3243.7,3243.5,0.49972]
[1762514494463,3.2078,3243.7,3243.0,3.2078]
[1762514494969,0.49971,3243.6,3243.4,0.49974]
[1762514495170,0.49975,3243.4,3243.1,0.49979]
[1762514495463,0.50218232,3243.9,3243.1,0.49979]
[1762514495670,0.50218232,3243.9,3243.0,3.2078]
[1762514495671,0.00250232,3243.9,3243.0,3.2078]
[1762514495875,0.00250232,3243.9,3243.6,0.4997]
[1762514496063,0.49973,3243.5,3242.9,0.00462341]
[1762514496369,0.49971,3243.6,3243.1,0.49979]
[1762514496567,3.2078,3243.7,3242.9,0.00462341]
[1762514496768,0.00250232,3243.9,3242.9,0.00462341]
[1762514496769,0.00250232,3243.9,3243.6,0.49971]
[1762514497265,0.00250232,3243.9,3243.5,0.49972]
[1762514497463,3.2078,3243.7,3242.9,0.00462341]
[1762514497772,3.2078,3243.7,3243.1,0.49979]
[1762514498065,0.49975,3243.4,3243.1,0.49979]
[1762514498268,3.2078,3243.3,3242.9,0.00462341]
[1762514498468,0.4998,3243.0,3242.9,0.00462341]
[1762514499267,0.79048234,3243.0,3242.9,2.341e-05]
[1762514499466,0.4998,3243.0,3242.9,2.341e-05]
[1762514500066,3.2078,3243.3,3242.9,2.341e-05]
[1762514500366,0.79084056,3243.2,3243.0,0.4998]
[1762514500570,3.2124,3243.3,3242.9,2.341e-05]
[1762514500869,0.4998,3243.0,3242.9,2.341e-05]
[1762514501074,1.29065396,3243.0,3242.9,2.341e-05]
[1762514501572,9.29065396,3243.0,3242.9,2.341e-05]
[1762514502270,1.29065396,3243.0,3242.9,2.341e-05]
[1762514503172,0.49989,3242.5,3242.4,0.00249016]
[1762514503372,3.70769,3242.5,3242.4,0.00249016]
[1762514504170,3.2078,3242.5,3242.4,0.50239016]
[1762514504370,3.70769,3242.5,3242.4,0.00249016]
[1762514504869,3.2078,3242.9,3242.5,0.49987]
[1762514505068,0.4744,3242.7,3242.4,0.00249016]
[1762514505273,3.70769,3242.5,3242.4,0.00249016]
[1762514505478,0.49992,3242.3,3242.2,0.1378]
[1762514505777,1.29036557,3242.3,3242.1,2.341e-05]
[1762514505978,1.29037557,3242.2,3242.1,2.341e-05]
[1762514506178,0.79044557,3242.2,3242.1,0.49997341]
[1762514506379,3.2078,3242.5,3242.1,2.341e-05]
[1762514506681,3.2078,3242.5,3242.4,0.4999]
[1762514506974,3.2078,3242.9,3242.8,0.49984]
[1762514507178,3.2124,3243.3,3242.1,3.21116425]
[1762514507369,0.79035798,3243.2,3242.1,3.21116425]
[1762514507567,3.2124,3243.3,3242.1,3.21116425]
[1762514508169,3.2124,3243.3,3243.2,0.49978]
[1762514508365,0.0046,3243.3,3243.2,0.49978]
[1762514508565,0.0046,3243.3,3243.2,6.66618]
[1762514508776,0.00250232,3243.9,3243.8,0.49969]
[1762514508970,0.00250232,3243.9,3243.8,6.66529]
[1762514509169,3.2078,3244.8,3244.7,0.49955]
[1762514509369,3.99967579,3244.8,3244.7,0.49955]
[1762514509573,3.2078,3244.8,3243.6,0.4948]
[1762514509779,3.2078,3244.8,3244.6,0.49956]
[1762514510070,3.2124234,3245.0,3244.4,0.00462341]
[1762514510271,3.2124234,3245.0,3244.4,0.00709457]
[1762514510272,3.21636175,3245.0,3244.4,0.00709457]
[1762514510476,3.21636175,3245.0,3244.5,0.49957]
[1762514510671,3.71586175,3245.0,3244.4,0.00709457]
[1762514510866,3.21636175,3245.0,3244.8,0.49952]
[1762514511070,3.71587175,3245.0,3244.6,0.49956]
[1762514511474,0.49953,3244.9,3244.4,0.00709457]
[1762514511669,0.49953,3244.9,3244.5,0.49957]
[1762514512081,3.21636175,3245.0,3244.4,0.00709457]
[1762514512477,3.21636175,3245.0,3244.7,0.01434106]
[1762514512676,3.21636175,3245.0,3244.7,0.51388106]